fUST/lending_fUST_20241012
["ID","MTS","AMOUNT","RATE_DAILY","PERIOD"]
[340153281,1728692965087,-3098.135348,0.00048474,7]
[340153357,1728693038524,-12844.75210989,0.00040901,10]
[340153358,1728693038536,-5000.0,0.00045,70]
[340153359,1728693038546,-2118.52152717,0.00048474,7]
[340153360,1728693038555,-1528.60578049,0.00048474,7]
[340153361,1728693038566,-157.23930562,0.00048484,60]
[340153362,1728693038577,-18313.1779017,0.00048484,7]
[340153363,1728693038588,-1528.60578049,0.00048484,7]
[340153364,1728693038598,-15063.69576269,0.00048494,5]
[340153365,1728693038608,-5000.0,0.000485,90]
[340153366,1728693038619,-400.0,0.00049517,2]
[340153367,1728693038629,-3783.38084826,0.0004988,30]
[340153368,1728693038641,-380.12548569,0.0005,120]
[340153369,1728693038653,-24328.30111146,0.00052,7]
[340153370,1728693038666,-5800.0,0.000525,80]
[340153371,1728693038675,-1987.55,0.00052689,10]
[340153372,1728693038687,-2862.07,0.00052699,10]
[340153373,1728693038697,-2385.06,0.00052699,10]
[340153374,1728693038709,-3434.49,0.00052709,10]
[340153375,1728693038720,-18041.20417297,0.00052719,120]
[340153376,1728693038732,-5000.0,0.00053283,120]
[340153377,1728693038742,-419.9085494,0.00053973,30]
[340153378,1728693038756,-209.4898726,0.00053973,30]
[340153379,1728693038767,-400.0,0.00054376,2]
[340153380,1728693038779,-501.38075388,0.00054489,10]
[340153381,1728693038791,-36626.3558034,0.00054774,8]
[340153382,1728693038801,-3057.21156098,0.00054774,8]
[340153383,1728693038811,-232.81728472,0.00054793,120]
[340153384,1728693038821,-333.73478085,0.00054793,120]
[340153385,1728693038834,-288.24075425,0.00054793,120]
[340153386,1728693038846,-500.0,0.00054794,120]
[340153387,1728693038857,-1250.0,0.00054794,120]
[340153388,1728693038867,-594.46,0.00054794,120]
[340153389,1728693038879,-491.0000006,0.00054794,120]
[340153390,1728693038890,-21587.95,0.00054794,18]
[340153391,1728693038901,-623.29,0.00054794,120]
[340153392,1728693038911,-18313.1779017,0.0005498,8]
[340153393,1728693038921,-1528.60578049,0.0005498,8]
[340153394,1728693038932,-18313.1779017,0.0005499,8]
[340153395,1728693038941,-1528.60578049,0.0005499,8]
[340153396,1728693038953,-50000.0,0.00055,30]
[340153397,1728693038963,-300.0,0.00055,30]
[340153398,1728693038975,-640.93467285,0.00055,2]
[340153399,1728693038985,-1000.0,0.00055,120]
[340153400,1728693038996,-36626.3558034,0.00055048,8]
[340153401,1728693039007,-3057.21156098,0.00055048,8]
[340153402,1728693039019,-21587.95,0.00055068,18]
[340153403,1728693039032,-623.29,0.00055068,120]
[340153404,1728693039043,-36626.3558034,0.0005509,8]
[340153405,1728693039053,-3057.21156098,0.0005509,8]
[340153406,1728693039062,-64137.0,0.000551,120]
[340153407,1728693039072,-150.112233,0.000553,10]
[340153408,1728693039084,-21587.95,0.00055342,18]
[340153409,1728693039095,-623.29,0.00055342,120]
[340153410,1728693039108,-174.11,0.000556,2]
[340153411,1728693039119,-18313.1779017,0.00055606,8]
[340153412,1728693039131,-1528.60578049,0.00055606,8]
[340153413,1728693039140,-21587.95,0.00055616,18]
[340153414,1728693039151,-623.29,0.00055616,120]
[340153415,1728693039162,-21587.95,0.0005589,18]
[340153416,1728693039174,-623.29,0.0005589,120]
[340153417,1728693039185,-177.0,0.00056,120]
[340153418,1728693039196,-175.0,0.00056,120]
[340153419,1728693039207,-201.0,0.00056,120]
[340153420,1728693039217,-167.0,0.00056,120]
[340153421,1728693039228,-500.0,0.0005601,7]
[340153422,1728693039238,-1036.01543802,0.00056027,120]
[340153423,1728693039250,-10000.0,0.00056028,120]
[340153424,1728693039259,-1528.60578049,0.00056154,9]
[340153425,1728693039270,-1250.0,0.00056164,120]
[340153426,1728693039279,-21587.95,0.00056164,18]
[340153427,1728693039290,-623.29,0.00056164,120]
[340153428,1728693039303,-150.112233,0.000562,14]
[340153429,1728693039313,-177.0,0.0005637,120]
[340153430,1728693039322,-21587.95,0.00056438,18]
[340153431,1728693039333,-623.29,0.00056438,120]
[340153432,1728693039344,-348.091158,0.000565,31]
[340153433,1728693039355,-1528.60578049,0.00056702,9]
[340153434,1728693039367,-21587.95,0.00056712,18]
[340153435,1728693039377,-623.29,0.00056712,120]
[340153436,1728693039389,-21587.95,0.00056986,18]
[340153437,1728693039401,-623.29,0.00056986,120]
[340153438,1728693039412,-150.112233,0.000571,12]
[340153439,1728693039424,-6114.42312196,0.0005721,9]
[340153440,1728693039435,-84725.51908307,0.0005722,2]
[340153482,1728693040405,-6960.46075678,0.00057022,2]
[340153483,1728693040417,-105850.78529515,0.0005722,2]
[340153484,1728693040427,-1528.60578049,0.0005725,9]
[340153485,1728693040438,-21587.95,0.0005726,18]
[340153486,1728693040450,-623.29,0.0005726,120]
[340153487,1728693040461,-500.0,0.00057273,15]
[340153488,1728693040471,-500.0,0.00057273,15]
[340153489,1728693040481,-6960.46075678,0.00057329,2]
[340153490,1728693040494,-1000.0,0.0005738,7]
[340153491,1728693040504,-1528.60578049,0.00057524,9]
[340153492,1728693040515,-21587.95,0.00057534,18]
[340153493,1728693040524,-623.29,0.00057534,120]
[340153494,1728693040534,-150.0,0.00057571,2]
[340153495,1728693040544,-6960.46075678,0.00057618,2]
[340153496,1728693040554,-71551.0799566,0.000578,20]
[340153497,1728693040564,-21587.95,0.00057808,18]
[340153498,1728693040575,-623.29,0.00057808,120]
[340153499,1728693040585,-6960.46075678,0.00057827,2]
[340153500,1728693040596,-150.0,0.00058043,2]
[340153501,1728693040607,-154.794977,0.00058082,120]
[340153502,1728693040617,-198.405478,0.00058082,120]
[340153503,1728693040627,-311.884607,0.00058082,120]
[340153504,1728693040636,-151.0,0.00058082,120]
[340153505,1728693040646,-311.884607,0.00058082,120]
[340153506,1728693040655,-151.0,0.00058082,120]
[340153507,1728693040665,-176.648756,0.00058082,120]
[340153508,1728693040677,-151.0,0.00058082,30]
[340153509,1728693040687,-21587.95,0.00058082,18]
[340153510,1728693040699,-623.29,0.00058082,120]
[340153511,1728693040709,-160.0,0.0005809,5]
[340153512,1728693040718,-150.0,0.000583,2]
[340153513,1728693040728,-21587.95,0.00058356,18]
[340153514,1728693040738,-623.29,0.00058356,120]
[340153515,1728693040747,-150.39677943,0.00058386,2]
[340153516,1728693040757,-153.191282,0.0005844,120]
[340153517,1728693040767,-155.066597,0.0005844,120]
[340153518,1728693040777,-151.0,0.0005844,120]
[340153519,1728693040789,-151.0,0.0005844,60]
[340153520,1728693040798,-1313.2815655,0.00058491,120]
[340153521,1728693040808,-6960.46075678,0.00058605,2]
[340153522,1728693040825,-253.248636,0.00058629,120]
[340153523,1728693040839,-151.0,0.00058629,120]
[340153524,1728693040939,-151.0,0.00058629,120]
[340153525,1728693040951,-152.734252,0.00058629,120]
[340153526,1728693040962,-151.0,0.00058629,120]
[340153527,1728693040974,-151.0,0.00058629,120]
[340153528,1728693040984,-151.0,0.00058629,30]
[340153529,1728693040996,-151.0,0.00058629,30]
[340153530,1728693041007,-21587.95,0.0005863,18]
[340153531,1728693041017,-623.29,0.0005863,120]
[340153532,1728693041027,-427.73057118,0.00058642,15]
[340153533,1728693041037,-515.71588476,0.00058642,15]
[340153534,1728693041047,-2000.0,0.000588,120]
[340153535,1728693041056,-43281.30032054,0.00058806,84]
[340153536,1728693041069,-24390.92636956,0.00058806,2]
[340153537,1728693041085,-18193.83619987,0.00058806,2]
[340153538,1728693041098,-3430.43544729,0.00058806,2]
[340153539,1728693041310,-23.12186917,0.00058806,2]
[340153578,1728693046145,-1656.29,0.00058796,10]
[340153579,1728693046155,-27620.25187672,0.00058806,2]
[340153580,1728693047272,-98.91078814,0.00058806,2]
[340153618,1728694038150,-239.30885,0.00035018,2]
[340153619,1728694038172,-162.464886,0.00035192,2]
[340153620,1728694038196,-162.464886,0.00035395,2]
[340153621,1728694038220,-162.464886,0.00035599,2]
[340153622,1728694038243,-162.464886,0.00035803,2]
[340153623,1728694038266,-162.464886,0.00036007,2]
[340153624,1728694038288,-162.464886,0.0003621,2]
[340153625,1728694038315,-162.464886,0.00036414,2]
[340153626,1728694038340,-250.0,0.00036464,2]
[340153627,1728694038363,-162.464886,0.00036618,2]
[340153628,1728694038388,-162.464886,0.00036822,2]
[340153629,1728694038410,-162.464886,0.00037025,2]
[340153630,1728694038430,-1286.88289349,0.0003705,2]
[340153631,1728694038450,-294.0,0.00037284,2]
[340153632,1728694038472,-400.0,0.00037946,2]
[340153633,1728694038493,-400.0,0.0003795,2]
[340153634,1728694038514,-253.0,0.00037951,2]
[340153635,1728694038535,-11588.84591339,0.00037951,2]
[340153636,1728694044110,-10493.71962841,0.00037951,2]
[340153637,1728694047144,-189.29957007,0.00037951,2]
[340153638,1728694147127,-166.666666,0.00037722,2]
[340153639,1728694147148,-2628.13488813,0.00037951,2]
[340153640,1728694147169,-400.0,0.00038602,30]
[340153641,1728694147189,-400.0,0.00038602,5]
[340153642,1728694147210,-16453.54083637,0.00038603,112]
[340153643,1728694147231,-3186.42182464,0.00038704,2]
[340153644,1728694147252,-1693.7505443,0.00038804,2]
[340153645,1728694147274,-2236.956043,0.00038844,2]
[340153646,1728694147293,-2236.956043,0.00039529,2]
[340153647,1728694147313,-1731.0,0.0004,14]
[340153648,1728694147336,-2236.956043,0.00040214,2]
[340153649,1728694147358,-3036.94032534,0.00040901,14]
[340153650,1728694147380,-170.987689,0.00041235,2]
[340153651,1728694147403,-560.0,0.00041235,5]
[340153652,1728694147428,-500.0,0.000415,10]
[340153653,1728694147457,-155.06,0.000416,31]
[340153654,1728694147484,-500.0,0.00042129,10]
[340153655,1728694147510,-560.0,0.00042462,30]
[340153656,1728694147535,-3186.42182462,0.00043111,28]
[340153657,1728694147560,-300.55285401,0.00043674,2]
[340153658,1728694147584,-300.55285398,0.00043677,2]
[340153659,1728694147608,-300.55285398,0.00043679,2]
[340153660,1728694147631,-300.55285398,0.00043682,2]
[340153661,1728694147658,-300.55285398,0.00043684,2]
[340153662,1728694147682,-263.648,0.00043685,68]
[340153663,1728694147706,-576.84120552,0.000437,2]
[340153664,1728694147732,-1340.02,0.00043755,10]
[340153665,1728694147757,-1116.68,0.00043755,10]
[340153666,1728694147782,-930.57,0.00043755,10]
[340153667,1728694147807,-500.0,0.00043764,31]
[340153668,1728694147833,-650.0,0.00043764,31]
[340153669,1728694147858,-500.0,0.00043764,31]
[340153670,1728694147884,-500.0,0.00043764,31]
[340153671,1728694147908,-500.0,0.00043764,31]
[340153672,1728694147934,-500.0,0.00043764,31]
[340153673,1728694147962,-450.0,0.00043764,31]
[340153674,1728694147988,-500.0,0.00043764,31]
[340153675,1728694148016,-500.0,0.00043764,31]
[340153676,1728694148042,-500.0,0.00043764,31]
[340153677,1728694148066,-500.0,0.00043764,31]
[340153678,1728694148094,-702.71,0.00043764,10]
[340153679,1728694148122,-64047.5070134,0.00043765,6]
[340153680,1728694148150,-1295.4154515,0.00043765,6]
[340153681,1728694148175,-712.08,0.00043765,30]
[340153682,1728694148197,-501.51634767,0.00043773,2]
[340153683,1728694148219,-500.0,0.00043773,10]
[340153684,1728694148242,-1000.0,0.00043774,7]
[340153685,1728694148266,-11226.46920515,0.00043775,6]
[340153686,1728694155248,-31471.86880375,0.00043775,6]
[340153687,1728694155272,-863.610301,0.00043775,6]
[340153688,1728694155294,-162.9720993,0.00043784,31]
[340153689,1728694155320,-233.61434659,0.00043784,31]
[340153690,1728694155345,-201.76852798,0.00043784,31]
[340153691,1728694155369,-1910.90617573,0.00043784,120]
[340153692,1728694155391,-512.31012474,0.00043785,2]
[340153693,1728694156126,-101010.00197304,0.00043785,2]
[340153694,1728694157204,-6209.56903238,0.00043785,2]
[340153695,1728694158114,-92267.74016484,0.00043785,2]
[340153696,1728694158136,-1876.1,0.000438,30]
[340153697,1728694158158,-783.0,0.00044049,5]
[340153698,1728694158187,-400.0,0.00044658,2]
[340153699,1728694158210,-1000.0,0.00045144,7]
[340153700,1728694158233,-618.32356796,0.0004634,120]
[340153701,1728694159103,-8986.26341604,0.0004634,120]
[340153702,1728694163111,-6848.95385234,0.0004634,120]
[340153703,1728694163135,-631.0,0.00046708,30]
[340153704,1728694163161,-152.0,0.00046849,90]
[340153705,1728694163200,-152.0,0.00047,90]
[340153706,1728694163225,-938.19409836,0.00047053,5]
[340153707,1728694165108,-158.80590164,0.00047053,5]
[340153708,1728694165136,-155.06,0.000474,42]
[340153709,1728694165163,-155.06,0.000474,42]
[340153710,1728694165186,-3186.42182462,0.00047517,28]
[340153711,1728694165209,-152.0,0.00048904,90]
[340153712,1728694165233,-400.0,0.00049517,2]
[340153713,1728694165256,-1321.0,0.00050263,15]
[340153714,1728694165279,-153.0,0.00051349,120]
[340153715,1728694165301,-3186.42182462,0.00051924,28]
[340153716,1728694165324,-239.30885,0.00052528,2]
[340153717,1728694165352,-21349.1690045,0.0005299,8]
[340153718,1728694165377,-431.8051505,0.0005299,8]
[340153719,1728694165400,-25659.72961873,0.00053,120]
[340153720,1728694216945,154.54,0.000416,31]
[340153721,1728694216987,154.54,0.000416,31]
[340153722,1728694217043,154.54,0.000416,31]
[340153723,1728694217112,154.54,0.000474,42]
[340153724,1728694217170,154.54,0.000474,42]
[340153725,1728694217225,154.54,0.000474,42]
[340153726,1728694217294,154.54,0.000474,42]
[340153727,1728694217350,154.54,0.000474,42]
[340153728,1728694217414,154.54,0.000474,42]
[340153746,1728694232013,-28158.27038127,0.00053,120]
[340153748,1728694232023,-154.54,0.000531,51]
[340153750,1728694232033,-154.54,0.000531,51]
[340153752,1728694232043,-154.54,0.000531,51]
[340153754,1728694232053,-154.54,0.000531,51]
[340153756,1728694232063,-154.54,0.000531,51]
[340153758,1728694232072,-154.54,0.000531,51]
[340153760,1728694232082,-500.0,0.0005345,7]
[340153762,1728694232091,-500.0,0.0005345,10]
[340153764,1728694232100,-290.27889501,0.00054075,120]
[340153766,1728694232110,-4825.99945,0.00054075,30]
[340153768,1728694232119,-12857.70479111,0.00054077,120]
[340153783,1728694232307,-1165.9688476,0.00054077,120]
[340153784,1728694232321,-2331.00339828,0.00054077,120]
[340153820,1728694240107,-98.86379935,0.00054077,120]
[340153821,1728694240117,-400.0,0.00054376,2]
[340153822,1728694240127,-153.0,0.00054795,120]
[340153823,1728694240137,-308.3117526,0.00054795,120]
[340153824,1728694240147,-209.9542747,0.00054795,120]
[340153825,1728694240156,-1876.1,0.000548,30]
[340153826,1728694240166,-1000.0,0.0005482,7]
[340153827,1728694240175,-515.71588476,0.0005482,15]
[340153828,1728694240185,-576.84120551,0.000555,2]
[340153829,1728694240195,-500.0,0.0005598,15]
[340153830,1728694240205,-175.0,0.00056,120]
[340153831,1728694240214,-154.0,0.00056,120]
[340153832,1728694240224,-154.0,0.0005637,120]
[340153833,1728694240233,-152.0,0.00056484,120]
[340153834,1728694240243,-6816.74110975,0.00057305,2]
[340153835,1728694240253,-550.0,0.00057603,120]
[340153836,1728694240263,-6816.74110975,0.00057604,2]
[340153838,1728694240273,-500.0,0.00058,120]
[340153839,1728694240283,-1000.0,0.00058,5]
[340153840,1728694240294,-6816.74110975,0.00058012,2]
[340153841,1728694240304,-1876.1,0.000581,30]
[340153842,1728694240314,-150.0,0.00058155,2]
[340153843,1728694240323,-6816.74110975,0.00058354,2]
[340153844,1728694240333,-156.7,0.000584,2]
[340153845,1728694240342,-150.0,0.00058502,2]
[340153846,1728694240352,-6816.74110975,0.00058587,2]
[340153847,1728694240362,-152.0,0.00058685,120]
[340153848,1728694240372,-160.0,0.00058718,5]
[340153849,1728694240381,-775.48,0.0005878,10]
[340153850,1728694240391,-646.23,0.0005878,10]
[340153851,1728694240401,-538.52,0.0005878,10]
[340153852,1728694240413,-10674.5845022,0.0005879,9]
[340153853,1728694240423,-215.90257525,0.0005879,9]
[340153854,1728694240434,-448.77,0.00058796,10]
[340153855,1728694240444,-10674.5845022,0.00058796,9]
[340153856,1728694240453,-215.90257525,0.00058796,9]
[340153857,1728694240464,-2000.0,0.000588,120]
[340153858,1728694240474,-888.78,0.000588,110]
[340153859,1728694240489,-2000.0,0.000588,7]
[340153860,1728694240499,-150.0,0.000588,2]
[340153861,1728694240510,-81444.45516372,0.00058806,2]
[340153862,1728694240520,-154.54,0.000589,60]
[340153863,1728694240530,-154.54,0.000589,60]
[340153864,1728694240539,-154.54,0.000589,60]
[340153865,1728694240550,-154.54,0.000589,60]
[340153866,1728694240560,-154.54,0.000589,60]
[340153867,1728694240573,-154.54,0.000589,60]
[340153868,1728694240585,-175.0,0.00058901,120]
[340153869,1728694240598,-154.0,0.00058901,120]
[340153870,1728694240609,-6816.74110975,0.00058921,2]
[340153871,1728694240621,-150.39677943,0.00059065,2]
[340153872,1728694240633,-10674.5845022,0.00059082,9]
[340153873,1728694240645,-215.90257525,0.00059082,9]
[340153874,1728694240655,-28029.6888574,0.00059119,2]
[340153875,1728694240669,-151.0,0.00059168,120]
[340153876,1728694240680,-151.0,0.00059168,120]
[340153877,1728694240690,-198.405478,0.00059168,120]
[340153878,1728694240699,-151.0,0.00059168,120]
[340153879,1728694240711,-151.0,0.00059168,120]
[340153880,1728694240722,-400.0,0.00059236,2]
[340153881,1728694240732,-6816.74110975,0.00059309,2]
[340153882,1728694240745,-32023.7535067,0.00059363,9]
[340153883,1728694240756,-647.70772575,0.00059363,9]
[340153884,1728694240768,-105850.78529515,0.00059373,2]
[340153885,1728694240778,-154.794977,0.00059452,120]
[340153886,1728694240791,-151.0,0.00059452,3]
[340153887,1728694240803,-151.0,0.00059452,120]
[340153888,1728694240815,-153.191282,0.00059452,120]
[340153889,1728694240824,-151.0,0.00059452,120]
[340153890,1728694240834,-150.112234,0.000596,12]
[340153891,1728694240844,-6816.74110975,0.00059648,2]
[340153892,1728694240858,-151.0,0.00059726,120]
[340153893,1728694240876,-150.112233,0.000598,11]
[340153894,1728694240886,-10674.5845022,0.0005989,9]
[340153895,1728694240897,-215.90257525,0.0005989,9]
[340153896,1728694240907,-300.02,0.00059899,120]
[340153897,1728694240918,-6725.04917677,0.00059899,120]
[340153898,1728694240928,-44936.57974202,0.000599,30]
[340153899,1728694240938,-2835.94,0.000599,14]
[340153900,1728694240948,-151.0,0.000599,120]
[340153901,1728694240958,-151.0,0.000599,120]
[340153902,1728694240968,-223.356653,0.000599,120]
[340153903,1728694240979,-155.066597,0.000599,120]
[340153904,1728694240991,-151.0,0.000599,120]
[340153905,1728694241004,-151.0,0.000599,120]
[340153906,1728694241016,-311.884607,0.000599,120]
[340153907,1728694241028,-151.0,0.000599,120]
[340153908,1728694241038,-311.884607,0.000599,120]
[340153909,1728694241049,-253.248636,0.000599,120]
[340153910,1728694241061,-151.0,0.000599,120]
[340153911,1728694241073,-152.734252,0.000599,120]
[340153912,1728694241083,-151.0,0.000599,120]
[340153913,1728694241094,-151.0,0.000599,120]
[340153914,1728694241107,-151.0,0.000599,60]
[340153915,1728694241120,-151.0,0.000599,120]
[340153916,1728694241134,-151.704308,0.000599,30]
[340153917,1728694241145,-151.704308,0.000599,30]
[340153918,1728694241158,-564.63742194,0.00059936,2]
[340153944,1728694246465,-302.0,0.00059936,2]
[340153945,1728694248537,157.0,0.00047,90]
[340153946,1728694248893,157.0,0.00048904,90]
[340153947,1728694261723,24900.0,0.00046821,2]
[340153949,1728694344973,564.6993111,0.00037001,2]
[340153950,1728694345314,500.0,0.00037001,2]
[340153974,1728695019547,-189.395956,0.00036069,2]
[340153975,1728695019575,-357.27396762,0.00037001,2]
[340153976,1728695019601,-500.0,0.00037001,2]
[340153977,1728695019628,-527.78697394,0.00037001,2]
[340153978,1728695019660,-400.0,0.00037586,2]
[340153979,1728695019685,-400.0,0.00037586,2]
[340153980,1728695019713,-560.0,0.00040193,5]
[340153981,1728695019740,-250.0,0.00040612,2]
[340153982,1728695019767,-6815.54310244,0.00040624,120]
[340153983,1728695021393,-10000.0,0.00040624,120]
[340153984,1728695022360,-10000.0,0.00040624,120]
[340153985,1728695023164,-1564.7245236,0.00040624,120]
[340153986,1728695023191,-250.0,0.00040724,2]
[340153987,1728695023220,-707.2318588,0.00040739,2]
[340153988,1728695023357,-250.0,0.00040835,2]
[340153989,1728695023386,-250.0,0.00040946,2]
[340153990,1728695023418,-250.0,0.00041058,2]
[340153991,1728695023446,-155.0,0.00041079,2]
[340153992,1728695023470,-6573.0436176,0.00041079,2]
[340153993,1728695024028,-10000.0,0.00041079,2]
[340153994,1728695025044,-8326.9563824,0.00041079,2]
[340153995,1728695025071,-250.0,0.00041169,2]
[340153996,1728695025097,-166.666666,0.00041173,2]
[340153997,1728695025122,-841.85837064,0.00041246,2]
[340153998,1728695025148,-250.0,0.00041281,2]
[340153999,1728695025173,-164.51858096,0.00041345,30]
[340154000,1728695026069,-395.48141904,0.00041345,30]
[340154001,1728695026095,-250.0,0.00041392,2]
[340154002,1728695026121,-946.620874,0.00041404,2]
[340154003,1728695026148,-250.0,0.00041503,2]
[340154004,1728695026177,-154.05,0.000416,31]
[340154005,1728695026206,-154.05,0.000416,31]
[340154006,1728695026233,-250.0,0.00041615,2]
[340154007,1728695026259,-250.0,0.00041726,2]
[340154008,1728695026284,-250.0,0.00041837,2]
[340154009,1728695026311,-250.0,0.00041855,2]
[340154010,1728695026340,-346.15,0.00041903,30]
[340154011,1728695026366,-288.46,0.00041903,30]
[340154012,1728695026391,-240.38,0.00041903,30]
[340154013,1728695026417,-200.32,0.00041903,30]
[340154014,1728695026442,-166.93,0.00041903,30]
[340154015,1728695026470,-834.67,0.00041903,30]
[340154016,1728695026495,-500.0,0.0004191,31]
[340154017,1728695026520,-500.0,0.0004191,31]
[340154018,1728695026546,-500.0,0.0004191,31]
[340154019,1728695026573,-500.0,0.0004191,31]
[340154020,1728695026600,-500.0,0.0004191,31]
[340154021,1728695026626,-500.0,0.0004191,31]
[340154022,1728695026654,-500.0,0.0004191,31]
[340154023,1728695026678,-500.0,0.0004191,31]
[340154024,1728695026711,-500.0,0.0004191,31]
[340154025,1728695026746,-272.88770696,0.0004191,31]
[340154026,1728695026956,-227.11229304,0.0004191,31]
[340154027,1728695026989,-518.20144194,0.0004191,31]
[340154028,1728695027020,-500.0,0.0004191,31]
[340154029,1728695027056,-500.0,0.0004191,31]
[340154030,1728695027087,-500.0,0.0004191,31]
[340154031,1728695027118,-500.0,0.0004191,31]
[340154032,1728695027152,-255.69752882,0.0004191,31]
[340154033,1728695027183,-500.0,0.0004191,31]
[340154034,1728695027214,-300.0,0.0004191,31]
[340154035,1728695027247,-500.0,0.0004191,31]
[340154036,1728695027278,-500.0,0.0004191,31]
[340154037,1728695027308,-500.0,0.0004191,31]
[340154038,1728695027335,-500.0,0.0004191,31]
[340154039,1728695027367,-500.0,0.0004191,31]
[340154040,1728695027398,-500.0,0.0004191,31]
[340154041,1728695027429,-500.0,0.0004191,31]
[340154042,1728695027464,-500.0,0.0004191,31]
[340154043,1728695027496,-500.0,0.0004191,31]
[340154044,1728695027528,-500.0,0.0004191,31]
[340154045,1728695027561,-500.0,0.0004191,31]
[340154046,1728695027591,-500.0,0.0004191,31]
[340154047,1728695027619,-198.9887362,0.0004191,31]
[340154048,1728695028750,-301.0112638,0.0004191,31]
[340154049,1728695028782,-500.0,0.0004191,31]
[340154050,1728695028810,-500.0,0.0004191,31]
[340154051,1728695028844,-500.0,0.0004191,31]
[340154052,1728695028874,-500.0,0.0004191,31]
[340154053,1728695028905,-228.77690338,0.0004191,31]
[340154054,1728695028938,-500.0,0.0004191,31]
[340154055,1728695028977,-500.0,0.0004191,31]
[340154056,1728695029008,-500.0,0.0004191,31]
[340154057,1728695029042,-500.0,0.0004191,31]
[340154058,1728695029073,-500.0,0.0004191,31]
[340154059,1728695029104,-500.0,0.0004191,31]
[340154060,1728695029137,-500.0,0.0004191,31]
[340154061,1728695029169,-3970.21183282,0.00041911,2]
[340154062,1728695030288,-3976.19491531,0.00041911,2]
[340154063,1728695030315,-3435.4320276,0.00041913,2]
[340154064,1728695030343,-250.0,0.00041949,2]
[340154065,1728695030370,-250.0,0.0004206,2]
[340154066,1728695030396,-966.3174155,0.00042081,2]
[340154067,1728695030423,-197.369512,0.000421,2]
[340154068,1728695030449,-250.0,0.00042172,2]
[340154069,1728695030476,-250.0,0.00042283,2]
[340154070,1728695030503,-165.923104,0.00042376,2]
[340154071,1728695030530,-250.0,0.00042394,2]
[340154072,1728695030558,-8.76302559,0.00042395,2]
[340154074,1728695130169,-157.16007841,0.00042395,2]
[340154075,1728695130192,-165.923104,0.00042414,2]
[340154076,1728695130215,-165.923104,0.00042433,2]
[340154077,1728695130239,-165.923104,0.00042453,2]
[340154078,1728695130263,-165.923104,0.00042472,2]
[340154079,1728695130284,-500.0,0.00042473,2]
[340154080,1728695130308,-165.923104,0.00042491,2]
[340154081,1728695130329,-550.0,0.00042494,30]
[340154082,1728695130352,-412.62058115,0.00042494,5]
[340154083,1728695157103,-3274.96590413,0.00042406,28]
[340154084,1728695157125,-137.37941885,0.00042494,5]
[340154085,1728695157146,-200.0,0.00042495,31]
[340154086,1728695157168,-500.0,0.00042495,31]
[340154087,1728695157189,-358.75298926,0.00042495,31]
[340154088,1728695157210,-500.0,0.00042495,31]
[340154089,1728695157234,-472.85528098,0.00042495,31]
[340154090,1728695157256,-329.33920287,0.00042496,30]
[340154091,1728695157280,-294.0,0.00042496,2]
[340154092,1728695157302,-9527.32635178,0.00042496,6]
[340154093,1728695157328,-1344.1304773,0.00042496,6]
[340154094,1728695191109,-550.0,0.00042495,30]
[340154095,1728695191133,-550.0,0.00042495,5]
[340154096,1728695191159,-7152.69089228,0.00042496,6]
[340154097,1728695203755,166.666666,0.00034688,2]
[340154098,1728695228200,-179.13267446,0.00042495,30]
[340154099,1728695229132,-370.86732554,0.00042495,30]